bitfinex/quotes_SOLUSD_20251018
["timestamp","ask_amount","ask_price","bid_price","bid_amount"]
[1760776631513,5.89181588,187.06,187.04,67.34644995]
[1760776632526,5.89181588,187.06,187.04,68.02644995]
[1760776633023,5.89181588,187.06,187.04,67.34644995]
[1760776635351,3.09285415,187.05,187.04,67.34644995]
[1760776635647,5.89181588,187.06,187.04,67.34644995]
[1760776637734,3.09285415,187.06,187.04,67.34644995]
[1760776639018,3.09285415,187.05,187.04,67.34644995]
[1760776641838,3.09285415,187.06,187.04,67.34644995]
[1760776642140,3.81285415,187.06,187.04,67.34644995]
[1760776642937,3.09285415,187.06,187.04,67.34644995]
[1760776643648,3.81285415,187.06,187.04,67.34644995]
[1760776643932,3.09285415,187.05,187.04,67.34644995]
[1760776644444,3.81285415,187.05,187.04,62.0]
[1760776645015,3.81285415,187.05,187.0,62.0]
[1760776645339,3.09285415,187.01,187.0,62.0]
[1760776645538,3.81285415,187.01,187.0,62.0]
[1760776650341,3.09285415,187.01,187.0,62.0]
[1760776650723,3.81285415,187.01,187.0,62.0]
[1760776653139,3.81285415,187.01,186.84,28.75988056]
[1760776653140,4.34815739,187.01,186.97,62.0]
[1760776653341,3.09285415,186.98,186.97,62.0]
[1760776653649,3.81285415,186.98,186.97,62.0]
[1760776653845,3.09285415,186.99,186.97,62.68]
[1760776654052,3.09285415,186.99,186.98,0.68]
[1760776654550,3.09285415,187.0,186.98,0.68]
[1760776655152,3.09285415,186.99,186.98,0.68]
[1760776655451,3.09285415,186.99,186.98,6.02816557]
[1760776656246,3.09285415,186.99,186.97,67.3483907]
[1760776656442,3.09285415,186.98,186.97,67.3483907]
[1760776657354,3.09285415,186.98,186.97,68.0283907]
[1760776657550,3.06463179,186.98,186.97,67.3483907]
[1760776658351,3.06463179,186.98,186.97,68.0483907]
[1760776658538,3.06463179,186.98,186.97,62.0]
[1760776659546,0.67,187.01,186.97,67.34845162]
[1760776659859,3.09285415,186.99,186.97,68.04845162]
[1760776660653,3.09285415,186.99,186.97,67.34845162]
[1760776660963,6.41499805,187.02,186.98,0.7]
[1760776661170,3.09285415,187.0,186.98,0.7]
[1760776662183,3.09285415,187.0,186.97,67.34845162]
[1760776662676,3.09285415,187.01,186.97,68.04845162]
[1760776664578,3.09285415,187.0,186.97,68.04845162]
[1760776665401,3.09285415,186.99,186.97,67.34845162]
[1760776666458,3.09285415,186.99,186.97,68.04845162]
[1760776666785,3.09285415,187.0,186.97,68.04845162]
[1760776668884,3.09285415,187.0,186.97,67.34845162]
[1760776669184,3.09285415,187.01,186.98,0.7]
[1760776669392,6.41499805,187.02,186.99,0.7]
[1760776669683,3.09285415,187.05,187.0,0.53475935]
[1760776669887,3.09285415,187.05,187.01,0.7]
[1760776670090,3.09285415,187.05,187.02,0.7]
[1760776670385,3.09285415,187.06,187.03,0.7]
[1760776670587,3.76285415,187.05,187.0,62.53475935]
[1760776670758,3.09285415,187.03,187.0,63.23475935]
[1760776671263,3.09285415,187.03,187.01,6.04730763]
[1760776671972,3.09285415,187.04,187.01,6.04730763]
[1760776672168,3.09285415,187.05,187.02,0.7]
[1760776672376,3.09285415,187.05,187.01,5.34730763]
[1760776672585,3.09285415,187.05,187.02,0.7]
[1760776672894,3.76285415,187.05,187.02,0.7]
[1760776673077,3.76285415,187.05,187.02,62.7]
[1760776673391,3.76285415,187.05,187.02,67.34682614]
[1760776675595,3.09285415,187.05,187.02,68.04682614]
[1760776676093,3.76285415,187.05,187.02,68.04682614]
[1760776676596,3.09285415,187.04,187.02,68.04682614]
[1760776676785,3.09285415,187.03,187.02,67.34682614]
[1760776677966,3.09285415,187.04,187.02,68.04682614]
[1760776678574,3.09285415,187.05,187.02,68.04682614]
[1760776679372,3.09285415,187.05,187.02,67.34682614]
[1760776679698,3.09285415,187.05,187.02,68.04682614]
[1760776680073,3.09285415,187.04,187.02,68.04682614]
[1760776680895,3.09285415,187.04,187.02,67.34682614]
[1760776681283,3.09285415,187.03,187.02,62.0]
[1760776681483,3.76285415,187.03,186.97,5.34843399]
[1760776681690,3.09285415,186.98,186.97,5.34843399]
[1760776682092,3.09285415,187.0,186.97,6.04843399]
[1760776682272,3.09285415,187.0,186.98,0.7]
[1760776682681,3.09285415,187.0,186.98,6.04803231]
[1760776682997,3.09285415,186.99,186.98,5.34803231]
[1760776683785,3.09285415,186.99,186.97,5.34845162]
[1760776683985,3.09285415,186.99,186.97,6.04845162]
[1760776684998,3.09285415,186.99,186.97,5.34845162]
[1760776685690,22.88,187.03,186.98,0.72]
[1760776685691,23.56,187.03,186.98,0.72]
[1760776685891,3.09285415,187.01,186.99,0.28782203]
[1760776686097,0.68,187.03,186.99,1.00782203]
[1760776686098,3.09285415,187.02,186.99,1.00782203]
[1760776686607,3.09285415,187.01,186.97,1.2928505]
[1760776687079,3.77285415,187.01,186.98,5.34816557]
[1760776687898,3.09285415,187.0,186.98,5.34816557]
[1760776688396,3.79285415,186.99,186.96,62.0]
[1760776688714,3.09285415,186.99,186.96,0.72]
[1760776689092,3.09285415,187.0,186.96,0.72]
[1760776689501,3.79285415,187.0,186.96,6.06867547]
[1760776689704,3.09285415,186.99,186.96,6.06867547]
[1760776689924,3.09285415,186.98,186.96,5.34867547]
[1760776690085,3.09285415,186.98,186.95,5.3490238]
[1760776690685,3.09285415,186.97,186.95,5.3490238]
[1760776691897,3.79285415,186.98,186.95,5.3490238]
[1760776693086,3.09285415,186.98,186.96,0.72]
[1760776693590,1.98097709,186.98,186.94,18.72253232]
[1760776693785,1.98097709,186.98,186.95,0.72]
[1760776695299,1.98097709,186.98,186.96,5.34873769]
[1760776697603,0.7,186.97,186.96,5.34873769]
[1760776697785,2.68097709,186.97,186.95,5.3489594]
[1760776698603,2.68097709,186.96,186.95,62.0]
[1760776699795,2.68097709,186.96,186.91,62.72]
[1760776699986,1.98097709,186.92,186.91,62.0]
[1760776700183,1.98097709,186.94,186.91,62.72]
[1760776701003,2.68097709,186.94,186.91,62.72]
[1760776701203,2.68097709,186.94,186.91,0.72]
[1760776701712,1.98097709,186.94,186.9,5.35039863]
[1760776701890,6.41147651,186.96,186.89,67.35066091]
[1760776701891,2.68097709,186.93,186.89,67.35066091]
[1760776702090,2.68097709,186.92,186.89,67.35066091]
[1760776702401,2.68097709,186.92,186.84,33.75647521]
[1760776702402,1.98097709,186.9,186.84,68.07213705]
[1760776702705,10.13787553,186.92,186.85,1.00432314]
[1760776702884,8.15689844,186.92,186.86,0.72]
[1760776703911,8.15689844,186.92,186.87,5.35131374]
[1760776704111,2.68097709,186.94,186.88,0.72]
[1760776705803,2.68097709,186.94,186.89,5.35074107]
[1760776706110,2.68097709,186.94,186.89,6.07074107]
[1760776706302,1.98097709,186.94,186.9,0.72]
[1760776706503,2.68097709,186.94,186.9,0.72]
[1760776707010,2.68097709,186.94,186.9,6.07031981]
[1760776707321,1.98097709,186.94,186.9,6.07031981]
[1760776707495,2.68097709,186.94,186.9,6.07031981]
[1760776707818,8.69220168,186.98,186.91,0.72]
[1760776708013,8.15689844,186.98,186.91,62.72]
[1760776708203,0.7,186.99,186.92,1.00432314]
[1760776708517,0.7,186.99,186.93,0.72]
[1760776708715,2.68097709,187.01,186.94,0.28432314]
[1760776708913,2.68097709,187.01,186.95,0.72]
[1760776709104,2.68097709,187.01,186.96,5.75203643]
[1760776709304,0.7,187.0,186.96,5.75203643]
[1760776709509,2.68097709,187.0,186.96,5.75203643]
[1760776709818,1.98097709,186.97,186.95,62.0]
[1760776710013,2.68097709,186.96,186.95,62.0]
[1760776710218,2.68097709,186.96,186.93,62.0]
[1760776710514,1.98097709,186.94,186.9,5.35038736]
[1760776710691,1.98097709,186.92,186.9,67.35038736]
[1760776711313,1.98097709,186.94,186.9,67.35038736]
[1760776711518,1.98097709,186.94,186.9,68.07038736]
[1760776711818,2.68097709,186.94,186.9,68.07038736]
[1760776711999,23.41530324,186.97,186.9,68.07038736]
[1760776712200,1.98097709,186.95,186.9,67.35038736]
[1760776712408,1.98097709,186.96,186.91,0.72]
[1760776712732,0.7,186.96,186.92,0.72]
[1760776712894,2.68097709,186.96,186.92,0.72]
[1760776713091,1.98097709,186.95,186.92,0.72]
[1760776713628,2.68097709,186.96,186.92,6.06962238]
[1760776713917,1.98097709,186.97,186.92,5.34962238]
[1760776714100,2.68097709,186.97,186.93,0.72]
[1760776714506,1.98097709,187.0,186.94,1.12398702]
[1760776714699,1.98097709,187.0,186.95,1.00432314]
[1760776715018,1.98097709,187.0,186.96,1.1239438]
[1760776715223,0.7,186.99,186.96,0.4039438]
[1760776715417,1.98097709,187.01,186.96,1.1239438]
[1760776715731,6.95030129,187.03,186.97,5.34845162]
[1760776715911,0.7,187.0,186.97,5.34845162]
[1760776716305,2.68097709,186.99,186.94,62.0]
[1760776716495,0.7,187.01,186.95,0.72]
[1760776716701,1.98097709,187.0,186.95,1.4087101]
[1760776716901,1.98097709,187.0,186.96,0.72]
[1760776717323,2.68097709,187.0,186.96,0.72]
[1760776717740,2.68097709,186.99,186.96,5.34873769]
[1760776718232,1.98097709,186.99,186.96,5.34873769]
[1760776719125,2.65097709,186.99,186.96,5.34873769]
[1760776719520,1.98097709,186.98,186.96,5.34873769]
[1760776719827,2.65097709,186.97,186.94,62.0]
[1760776720127,1.98097709,186.95,186.94,62.0]
[1760776720435,2.65097709,186.95,186.94,62.0]
[1760776720835,2.65097709,186.95,186.9,62.0]
[1760776721004,1.98097709,186.93,186.9,62.0]
[1760776721208,1.98097709,186.93,186.9,62.7]
[1760776721636,1.98097709,186.93,186.9,67.3504277]
[1760776722410,1.98097709,186.93,186.88,0.7]
[1760776722411,1.98097709,186.91,186.89,62.0]
[1760776722711,2.65097709,186.9,186.87,5.35131374]
[1760776722914,1.98097709,186.9,186.87,68.05131374]
[1760776723723,1.98097709,186.89,186.87,68.05131374]
[1760776723924,1.98097709,186.89,186.87,5.35131374]
[1760776724128,0.53530324,186.94,186.88,0.7]
[1760776724312,1.98097709,186.9,186.88,62.7]
[1760776724511,1.98097709,186.91,186.88,62.7]
[1760776725517,1.98097709,186.91,186.89,5.35074107]
[1760776725920,1.98097709,186.9,186.89,67.35074107]
[1760776726828,1.98097709,186.9,186.89,62.0]
[1760776727042,2.65097709,186.9,186.89,62.0]
[1760776727211,1.98097709,186.9,186.89,62.0]
[1760776727412,2.65097709,186.9,186.89,62.0]
[1760776728944,1.98097709,186.9,186.89,62.0]
[1760776733536,1.98097709,186.9,186.89,62.0]
[1760776735947,2.65097709,186.9,186.89,62.0]
[1760776736147,1.98097709,186.9,186.89,62.0]
[1760776738043,0.67,186.92,186.89,62.0]
[1760776738254,1.98097709,186.9,186.89,62.0]
[1760776738752,2.65097709,186.9,186.84,5.35217298]
[1760776738921,0.67,186.91,186.86,0.7]
[1760776739116,1.98097709,186.89,186.87,0.7]
[1760776739343,1.98097709,186.88,186.87,0.7]
[1760776739942,1.98097709,186.89,186.87,0.7]
[1760776740149,1.98097709,186.89,186.88,5.35102739]
[1760776740352,1.98097709,186.91,186.88,68.05102739]
[1760776740753,1.98097709,186.91,186.88,67.35102739]
[1760776740946,1.98097709,186.91,186.88,68.05102739]
[1760776741152,1.98097709,186.9,186.88,68.05102739]
[1760776741342,1.98097709,186.9,186.88,62.0]
[1760776741541,1.98097709,186.89,186.88,62.0]
[1760776742754,1.98097709,186.9,186.88,68.05101552]
[1760776743266,1.98097709,186.9,186.88,67.35101552]
[1760776744240,1.98097709,186.9,186.89,0.67]
[1760776744642,1.98097709,186.91,186.89,6.02074107]
[1760776745247,1.98097709,186.91,186.89,0.67]
[1760776745769,1.98097709,186.94,186.9,1.20352398]
[1760776745954,1.98097709,186.94,186.91,0.67]
[1760776747173,1.98097709,186.94,186.91,6.02006165]
[1760776750062,1.98097709,186.94,186.91,62.0]
[1760776750564,2.70097709,186.94,186.91,62.0]
[1760776750863,1.98097709,186.94,186.91,62.0]
[1760776751441,1.98097709,186.94,186.91,67.35006165]
[1760776751743,6.41499805,186.95,186.92,0.53346689]
[1760776751943,1.98097709,186.96,186.93,0.47]
[1760776752167,2.70097709,186.96,186.92,0.53346689]
[1760776752464,2.70097709,186.96,186.92,1.00346689]
[1760776752653,1.98097709,186.98,186.93,0.47]
[1760776752860,7.67030129,186.99,186.94,0.81773295]
[1760776752861,6.41499805,186.99,186.94,0.81773295]
[1760776753166,2.70097709,187.01,186.95,0.47]
[1760776753360,1.98097709,187.0,186.96,0.53335274]
[1760776753542,1.98097709,186.99,186.96,0.53335274]
[1760776753749,2.70097709,186.99,186.96,0.53335274]
[1760776753956,1.98097709,186.98,186.96,0.53335274]
[1760776754149,1.98097709,186.97,186.93,62.0]
[1760776754355,2.70097709,186.96,186.93,62.0]
[1760776754555,2.70097709,186.95,186.93,62.0]
[1760776755472,3.09639785,186.96,186.93,67.8845557]
[1760776755668,3.09639785,186.98,186.94,0.47]
[1760776755972,3.09639785,186.98,186.95,0.53490238]
[1760776756172,3.09639785,186.98,186.95,1.00490238]
[1760776756872,3.09639785,186.98,186.95,0.53490238]
[1760776757250,3.09639785,186.98,186.96,5.34873769]
[1760776758968,3.81639785,186.97,186.96,62.0]
[1760776759757,0.72,186.97,186.94,67.34904017]
[1760776759963,23.41530324,187.01,186.92,0.53493099]
[1760776759964,3.09639785,186.95,186.92,67.88452728]
[1760776760166,3.09639785,186.93,186.92,67.88452728]
[1760776760470,3.81639785,186.93,186.89,62.0]
[1760776760680,3.09639785,186.9,186.89,62.0]
[1760776761380,3.09639785,186.9,186.88,0.53493099]
[1760776761381,3.81639785,186.9,186.88,0.53493099]
[1760776761559,3.09639785,186.89,186.87,62.0]
[1760776761878,3.09639785,186.89,186.87,62.53513137]
[1760776762363,3.09639785,186.89,186.88,5.35094828]
[1760776762678,3.09639785,186.9,186.88,5.35094828]
[1760776763264,3.81639785,186.89,186.87,5.35130078]
[1760776763464,3.81639785,186.88,186.85,5.35162306]
[1760776763663,3.09639785,186.87,186.85,5.35162306]
[1760776766576,3.09639785,186.86,186.85,5.35162306]
[1760776767279,0.72,186.89,186.85,5.8868117]
[1760776767475,3.09639785,186.87,186.85,5.8868117]
[1760776767783,3.09639785,186.87,186.85,5.35162306]
[1760776768081,3.09639785,186.88,186.85,5.35162306]
[1760776768279,3.09639785,186.88,186.85,5.88675441]
[1760776768464,3.09639785,186.88,186.85,6.35675441]
[1760776768664,3.81639785,186.88,186.85,5.88675441]
[1760776770068,0.72,186.87,186.85,5.88675441]
[1760776770378,3.81639785,186.9,186.85,19.26647076]
[1760776770578,3.09639785,186.9,186.85,81.73647076]
[1760776770772,0.72,186.89,186.85,81.73647076]
[1760776771475,0.72,186.89,186.85,81.26647076]
[1760776771681,3.81639785,186.89,186.85,81.26647076]
[1760776771875,0.72,186.88,186.85,81.26647076]
[1760776772188,3.09639785,186.89,186.85,81.73647076]
[1760776772377,0.72,186.89,186.85,81.26647076]
[1760776772582,3.81639785,186.89,186.85,81.26647076]
[1760776772979,3.81639785,186.88,186.85,81.26647076]
[1760776773284,0.72,186.87,186.85,81.26647076]
[1760776773592,3.09639785,186.89,186.85,81.73647076]
[1760776773770,0.72,186.88,186.85,81.26647076]
[1760776774689,3.09639785,186.87,186.85,81.26647076]
[1760776774885,3.81639785,186.87,186.85,81.26647076]
[1760776775491,3.81639785,186.88,186.85,81.26647076]
[1760776775679,0.72,186.88,186.85,81.26647076]
[1760776777786,3.81639785,186.88,186.85,67.88675441]
[1760776777974,3.79639785,186.87,186.85,67.35162306]
[1760776778180,0.7,186.86,186.85,67.35162306]
[1760776778801,3.09639785,186.88,186.85,67.88669713]
[1760776778989,0.7,186.88,186.85,67.88669713]
[1760776781281,3.09639785,186.89,186.85,67.88669713]
[1760776781484,0.7,186.88,186.85,67.88669713]
[1760776783487,0.53530324,186.93,186.85,67.88669713]
[1760776783690,3.09639785,186.89,186.85,67.88669713]
[1760776783880,3.79639785,186.89,186.85,67.88669713]
[1760776784196,0.7,186.88,186.85,67.88669713]
[1760776784605,3.79639785,186.88,186.85,67.35162306]
[1760776784779,3.79639785,186.87,186.85,67.35162306]
[1760776785684,0.7,186.87,186.85,67.35162306]
[1760776787782,3.79639785,186.87,186.85,62.0]
[1760776788089,3.79639785,186.87,186.85,67.35186901]
[1760776788680,3.79639785,186.88,186.85,67.35186901]
[1760776789203,0.7,186.88,186.85,67.35186901]
[1760776789404,3.09639785,186.89,186.85,67.35186901]
[1760776789601,3.09639785,186.87,186.85,62.0]
[1760776789800,0.7,186.86,186.85,62.0]
[1760776790001,3.79639785,186.86,186.85,62.0]
[1760776790186,3.09639785,186.86,186.85,62.0]
[1760776790588,3.79639785,186.86,186.85,62.0]
[1760776790786,3.79639785,186.86,186.83,0.1]
[1760776791399,3.79639785,186.86,186.83,5.452423]
[1760776794007,3.79639785,186.85,186.83,5.452423]
[1760776794213,3.79639785,186.85,186.83,62.1]
[1760776794214,0.7,186.84,186.83,62.1]
[1760776794411,3.79639785,186.84,186.83,62.1]
[1760776795709,3.79639785,186.84,186.83,0.1]
[1760776799090,10.2113959,186.84,186.83,0.1]
[1760776799407,10.74669914,186.84,186.83,0.1]
[1760776800317,30.07174518,186.84,186.83,0.1]
[1760776801597,36.85287306,186.82,186.81,0.1]
[1760776801910,34.66859953,186.82,186.81,0.1]
[1760776802108,35.36859953,186.82,186.81,0.1]
[1760776802321,10.87647521,186.81,186.79,0.1]
[1760776802530,14.5081763,186.8,186.79,0.1]
[1760776802806,27.58100638,186.8,186.79,0.1]
[1760776803404,32.93432543,186.8,186.79,0.1]
[1760776803819,36.85287306,186.77,186.76,0.1]
[1760776804300,37.51287306,186.77,186.76,0.1]
[1760776805817,42.86705199,186.77,186.76,0.1]
[1760776806118,45.96344984,186.77,186.76,0.1]
[1760776806913,10.87647521,186.76,186.74,0.1]
[1760776807222,17.60457415,186.75,186.74,0.1]
[1760776807412,10.87647521,186.74,186.72,0.1]
[1760776807618,14.5081763,186.73,186.72,0.1]
[1760776807818,15.1681763,186.73,186.72,0.1]
[1760776808125,34.66819403,186.73,186.72,0.1]
[1760776808420,26.21647031,186.73,186.72,0.1]
[1760776808722,21.58669589,186.73,186.72,0.1]
[1760776809308,10.71022068,186.73,186.72,0.1]
[1760776809522,6.41851959,186.73,186.72,0.1]
[1760776809707,3.09639785,186.74,186.72,0.1]
[1760776810112,3.09639785,186.73,186.72,0.1]
[1760776811322,3.09639785,186.73,186.72,0.57]
[1760776811730,3.09639785,186.73,186.72,0.1]
[1760776815038,3.09639785,186.73,186.72,62.1]
[1760776816217,23.56,186.75,186.72,62.1]
[1760776816537,3.09639785,186.73,186.72,62.1]
[1760776817425,1.98658167,186.73,186.72,62.1]
[1760776817728,8.40510126,186.75,186.72,67.9255344]
[1760776817929,8.40510126,186.75,186.73,0.47]
[1760776818524,8.40510126,186.75,186.72,62.1]
[1760776818525,1.98658167,186.74,186.72,62.1]
[1760776818723,1.98658167,186.73,186.72,0.1]
[1760776819037,2.66658167,186.73,186.72,0.1]
[1760776819411,1.98658167,186.73,186.72,0.1]
[1760776820621,11.35878335,186.73,186.72,0.1]
[1760776820928,31.71689844,186.73,186.72,0.1]
[1760776821112,33.70348011,186.73,186.72,0.1]
[1760776821913,33.02348011,186.73,186.72,0.1]
[1760776823329,10.14348011,186.73,186.72,0.1]
[1760776825137,10.82348011,186.73,186.72,0.1]
[1760776831530,10.87647521,186.72,186.71,0.1]
[1760776831839,21.55525856,186.72,186.7,0.1]
[1760776832028,10.82348011,186.71,186.7,0.1]
[1760776839453,39.05937963,186.71,186.7,0.1]
[1760776839652,49.93585484,186.71,186.7,0.1]
[1760776839857,44.57995532,186.71,186.7,0.1]
[1760776840148,45.11525856,186.71,186.7,0.1]
[1760776843357,50.47115808,186.71,186.7,0.1]
[1760776843564,49.93585484,186.71,186.7,0.1]
[1760776844843,44.57995532,186.71,186.7,0.1]
[1760776845146,45.11525856,186.71,186.7,0.1]
[1760776845965,31.57220168,186.71,186.7,0.1]
[1760776846132,0.53530324,186.77,186.7,0.57]
[1760776846338,1.98658167,186.76,186.7,81.85204143]
[1760776846540,1.98658167,186.76,186.71,0.75432314]
[1760776846844,0.53530324,186.79,186.71,0.75432314]
[1760776846845,1.98658167,186.79,186.73,5.35532587]
[1760776847155,1.98658167,186.79,186.74,1.0055039]
[1760776847349,1.98658167,186.79,186.75,0.47]
[1760776847558,1.56813623,186.82,186.76,0.53544656]
[1760776847756,1.98658167,186.79,186.77,0.47]
[1760776848052,1.98658167,186.79,186.78,0.47]
[1760776849546,1.98658167,186.8,186.78,1.00538922]
[1760776849744,1.03283299,186.82,186.79,0.47]
[1760776849937,1.98658167,186.8,186.79,0.47]
[1760776850251,2.68658167,186.8,186.78,62.0]
[1760776850458,2.68658167,186.79,186.78,62.0]
[1760776851351,26.10188491,186.79,186.78,62.0]
[1760776851544,26.10188491,186.79,186.72,62.47]
[1760776851545,3.22188491,186.79,186.72,62.47]
[1760776851741,1.98658167,186.73,186.72,62.47]
[1760776852256,1.98658167,186.73,186.72,62.0]
[1760776852932,1.98658167,186.73,186.71,5.35586921]
[1760776852933,1.98658167,186.73,186.7,0.1]
[1760776853132,1.98658167,186.71,186.7,0.1]
[1760776853328,1.98658167,186.71,186.7,0.57]
[1760776854133,1.98658167,186.71,186.7,0.1]
[1760776856940,2.68658167,186.71,186.7,0.1]
[1760776857347,1.98658167,186.71,186.7,0.1]
[1760776858658,2.68658167,186.71,186.7,0.1]
[1760776859456,2.68658167,186.71,186.7,62.1]
[1760776860254,2.68658167,186.71,186.7,0.1]
[1760776860438,3.22188491,186.71,186.7,0.1]
[1760776861761,26.10188491,186.71,186.7,0.1]
[1760776863560,25.40188491,186.71,186.7,0.1]
[1760776863742,1.98658167,186.71,186.7,0.1]
[1760776864259,2.66658167,186.71,186.7,0.1]
[1760776865649,26.08188491,186.71,186.7,0.1]
[1760776869848,24.86658167,186.71,186.7,0.1]
[1760776870052,1.98658167,186.71,186.7,0.1]
[1760776872272,1.98658167,186.71,186.7,0.57]
[1760776873351,1.98658167,186.71,186.7,0.1]
[1760776877083,1.98658167,186.71,186.7,0.57]
[1760776877374,0.53530324,186.74,186.7,62.1]
[1760776877581,1.98658167,186.71,186.7,62.1]
[1760776877880,2.69658167,186.71,186.7,62.1]
[1760776878254,1.98658167,186.71,186.7,62.1]
[1760776879380,3.10487735,186.71,186.7,62.1]
[1760776881077,0.53530324,186.74,186.7,62.1]
[1760776881078,3.10487735,186.74,186.7,67.92613222]
[1760776881278,3.10487735,186.74,186.71,1.00558995]
[1760776881672,3.10487735,186.75,186.71,1.00558995]
[1760776881873,3.81487735,186.75,186.71,1.00558995]
[1760776882072,3.10487735,186.75,186.71,5.89133444]
[1760776882378,3.10487735,186.77,186.72,0.47]
[1760776882569,3.10487735,186.77,186.73,0.53553258]
[1760776882878,3.10487735,186.77,186.74,0.47]
[1760776883284,3.10487735,186.77,186.74,5.82496986]
[1760776883860,3.10487735,186.77,186.74,5.35496986]
[1760776884067,27.01771034,186.78,186.74,5.35496986]
[1760776884268,27.72771034,186.78,186.74,5.35496986]
[1760776884463,1.03283299,186.78,186.75,0.47]
[1760776884664,3.81487735,186.77,186.74,5.35496986]
[1760776884866,0.71,186.77,186.74,5.35496986]
[1760776885886,3.81487735,186.77,186.74,5.35496986]
[1760776886073,3.81487735,186.77,186.74,67.35496986]
[1760776887375,3.81487735,186.76,186.74,67.35496986]
[1760776887579,3.10487735,186.76,186.74,67.35496986]
[1760776889082,3.81487735,186.75,186.73,62.0]
[1760776889272,3.10487735,186.74,186.73,62.0]
[1760776889964,3.81487735,186.74,186.73,62.0]
[1760776893266,3.10487735,186.74,186.73,62.0]
[1760776897881,3.81487735,186.74,186.73,62.0]
[1760776898191,3.10487735,186.74,186.73,62.0]
[1760776898379,3.80487735,186.74,186.73,62.0]
[1760776900191,3.80487735,186.74,186.7,62.1]
[1760776900374,3.10487735,186.71,186.7,62.1]
[1760776900695,3.80487735,186.71,186.7,0.1]
[1760776906193,3.10487735,186.71,186.7,0.1]
[1760776907202,3.10487735,186.73,186.7,0.635532]
[1760776907600,3.10487735,186.73,186.7,5.99171839]
[1760776908096,3.10487735,186.72,186.7,5.99171839]
[1760776908707,3.10487735,186.71,186.7,0.1]
[1760776908886,3.80487735,186.71,186.7,0.1]
[1760776909403,3.10487735,186.71,186.7,0.1]
[1760776909801,3.10487735,186.71,186.7,62.1]
[1760776910594,3.80487735,186.71,186.7,62.1]
[1760776911306,3.10487735,186.71,186.7,62.1]
[1760776913200,3.10487735,186.73,186.7,67.92618639]
[1760776913390,3.10487735,186.73,186.71,0.53558995]
[1760776913585,3.10487735,186.73,186.71,62.53558995]
[1760776913916,3.10487735,186.72,186.71,62.53558995]
[1760776914306,3.10487735,186.72,186.71,67.89148947]
[1760776915206,3.10487735,186.73,186.71,67.89148947]
[1760776918595,3.10487735,186.74,186.72,0.47]
[1760776918796,3.10487735,186.75,186.72,62.47]
[1760776919003,3.10487735,186.76,186.73,1.00553258]
[1760776920013,3.10487735,186.76,186.74,5.35503909]
[1760776921010,3.10487735,186.75,186.73,5.89081333]
[1760776923215,3.80487735,186.74,186.72,62.0]
[1760776923412,3.80487735,186.73,186.72,62.0]
[1760776923716,3.80487735,186.73,186.7,0.1]
[1760776923913,3.10487735,186.72,186.7,0.1]
[1760776924418,3.10487735,186.72,186.71,5.35582196]
[1760776924617,3.10487735,186.72,186.7,5.45615484]
[1760776924618,3.77487735,186.72,186.7,5.45615484]
[1760776924790,3.77487735,186.71,186.7,5.45615484]
[1760776925698,3.10487735,186.71,186.7,5.45615484]
[1760776926105,3.10487735,186.73,186.7,6.46177347]
[1760776926315,3.10487735,186.71,186.7,5.45615484]
[1760776927106,3.10487735,186.72,186.7,5.45615484]
[1760776927620,3.10487735,186.72,186.7,67.45615484]
[1760776927916,3.10487735,186.73,186.7,67.45615484]
[1760776928113,3.10487735,186.72,186.7,67.45615484]
[1760776928712,0.68,186.73,186.7,67.45615484]
[1760776928713,3.78487735,186.73,186.7,67.45615484]
[1760776928933,3.10487735,186.73,186.7,67.92615484]
[1760776929320,3.10487735,186.73,186.7,67.45615484]
[1760776929516,3.10487735,186.73,186.7,67.92615484]
[1760776929917,3.10487735,186.74,186.7,67.92615484]
[1760776930221,3.10487735,186.74,186.7,80.84662082]
[1760776930426,3.10487735,186.75,186.71,1.00558994]
[1760776930604,3.10487735,186.76,186.72,0.47]
[1760776931004,3.78487735,186.76,186.72,0.47]
[1760776931199,3.78487735,186.76,186.71,0.53558994]
[1760776931727,22.88,186.79,186.72,0.47]
[1760776931925,3.78487735,186.76,186.73,0.53553258]
[1760776932098,22.88,186.79,186.73,0.53553258]
[1760776932099,3.78487735,186.75,186.73,0.53553258]
[1760776932306,3.78487735,186.75,186.73,62.0]